[Event "FRA-chT Top 12 2019"]
[Site "Brest"]
[Date "2019.05.20"]
[Round "3.8"]
[White "Haussernot, Cecile"]
[Black "Bolon, Karelle"]
[Result "1-0"]
[ECO "C00"]
[WhiteElo "2097"]
[BlackElo "2018"]
[Annotator "NA RC"]
[PlyCount "83"]
[EventDate "2019.05.18"]
[EventType "team-tourn"]
[EventCountry "FRA"]
[SourceTitle "playchess.com"]
[Source "ChessBase"]
[SourceQuality "1"]
[TimeControl "40/5400+30:1800+30"]

1. e4 {[%emt 0:00:00]} e6 {[%emt 0:00:00]} 2. d3 {[%emt 0:00:00]} d5 {[%emt 0:01:03]} 3. Nd2 {[%emt 0:00:00]} c5 {[%emt 0:02:37]} 4. g3 {[%emt 0:00:15]} Bd6 {[%emt 0:01:05]} 5. Bg2 {[%emt 0:00:10]} Ne7 {[%emt 0:01:06]} 6. Ngf3 {[%emt 0:00:34]} Nbc6 {[%emt 0:00:43]} 7. O-O {[%emt 0:00:31]} b6 {[%emt 0:06:57]} 8. Re1 {[%emt 0:00:19] A08: King's Indian Attack} (8. Nh4 Bb7 9. f4 Qd7 10. c3 Bc7 11. e5 O-O-O 12. Ndf3 d4 13. c4 f6 14. exf6 gxf6 15. Bd2 Ng6 {½-½ (48) Nevednichy,V (2566)-Navara,D (2647) Warsaw 2005}) 8... Qc7 {[%emt 0:04:24]} 9. Qe2 {[%emt 0:00:52]} Qd7 {[%emt 0:03:38]} 10. e5 $146 {[%emt 0:02:30]} ({Predecessor:} 10. b3 Bb7 11. Bb2 d4 12. a4 e5 13. Nc4 O-O 14. Nh4 Ba6 15. Nf5 Bxc4 16. bxc4 {1-0 (28) Lenic,L (2257)-Papargiriou,A Heraklio 2002}) 10... Bc7 {[%emt 0:00:22]} 11. Nf1 {[%emt 0:02:21]} Bb7 {[%emt 0:01:54]} 12. c3 {[%emt 0:05:40]} h6 {[%emt 0:03:50]} 13. Bd2 {[%emt 0:08:22]} g5 {[%emt 0:01:37]} (13... a5 $15) 14. h3 {[%emt 0:00:55]} Ng6 {[%emt 0:00:48]} (14... d4 $11 {remains equal.}) 15. d4 {[%emt 0:00:16]} a5 {[%emt 0:02:59]} 16. N1h2 {[%emt 0:01:16]} Ba6 {[%emt 0:04:04]} 17. Qe3 {[%emt 0:00:51]} Nce7 {[%emt 0:02:45]} 18. Bc1 {[%emt 0:03:55]} Nf5 {[%emt 0:01:58]} 19. Qd2 {[%emt 0:00:05]} O-O-O {[%emt 0:12:56]} (19... Bd8 $14) 20. Ng4 {[%emt 0:00:30]} c4 {[%emt 0:10:30]} 21. Nf6 {[%emt 0:00:49]} Qc6 {[%emt 0:01:23]} 22. b3 $16 {[%emt 0:00:53]} Ng7 {[%emt 0:03:39]} 23. Qc2 {[%emt 0:03:27]} Ne8 {[%emt 0:03:44]} 24. Nh5 {[%emt 0:02:44]} Kb8 {[%emt 0:01:05]} 25. Nd2 {[%emt 0:02:50]} cxb3 {[%emt 0:08:30]} 26. axb3 {[%emt 0:00:51]} Rc8 {[%emt 0:01:36]} 27. b4 {[%emt 0:06:19]} Bd8 {[%emt 0:01:42]} 28. Bb2 {[%emt 0:02:51]} Bc4 {[%emt 0:04:49]} 29. bxa5 {[%emt 0:01:11]} bxa5 {[%emt 0:01:14]} 30. Nxc4 {[%emt 0:05:57]} Qxc4 {[%emt 0:00:16]} 31. Ra4 {[%emt 0:00:25]} Qc6 {[%emt 0:02:48]} 32. c4 {[%emt 0:01:01]} Bb6 {[%emt 0:03:28]} 33. Bc3 {[%emt 0:00:45]} Rc7 {[%emt 0:03:17]} 34. c5 {[%emt 0:06:24]} Bxc5 {[%emt 0:01:54]} 35. dxc5 {[%emt 0:00:35]} Qxc5 {[%emt 0:00:11]} 36. Rb1+ {[%emt 0:01:32]} Kc8 {[%emt 0:00:36]} 37. Rc1 {[%emt 0:01:28]} Kd7 {[%emt 0:02:21]} 38. Rxa5 {[%emt 0:00:48]} Qe7 {[%emt 0:00:33]} 39. Qa4+ {[%emt 0:00:11]} Rc6 {[%emt 0:00:32]} 40. Bb4 {[%emt 0:00:12]} Qxb4 {[%emt 0:00:29]} 41. Ra7+ {[%emt 0:30:18]} Nc7 {[%emt 0:30:26]} 42. Qxc6+ {[%emt 0:00:15]} 1-0

[Event "FRA-chT Top 12 2019"]
[Site "Brest"]
[Date "2019.05.21"]
[Round "4.3"]
[White "Lagarde, Maxime"]
[Black "Colin, Vincent"]
[Result "1-0"]
[ECO "B32"]
[WhiteElo "2600"]
[BlackElo "2383"]
[Annotator "RC"]
[PlyCount "79"]
[EventDate "2019.05.18"]
[EventType "team-tourn"]
[EventCountry "FRA"]
[SourceTitle "playchess.com"]
[Source "ChessBase"]
[SourceQuality "1"]
[TimeControl "40/5400+30:1800+30"]

1. e4 {[%emt 0:00:00]} c5 {[%emt 0:00:00]} 2. Nf3 {[%emt 0:00:00]} Nc6 {[%emt 0:00:00]} 3. d4 {[%emt 0:00:00]} cxd4 {[%emt 0:00:00]} 4. Nxd4 {[%emt 0:00:00]} e5 {[%emt 0:00:02]} 5. Nb5 {[%emt 0:00:00]} d6 {[%emt 0:00:07]} 6. N1c3 {[%emt 0:00:10]} a6 {[%emt 0:00:32]} 7. Na3 {[%emt 0:00:03]} Be7 {[%emt 0:03:46]} 8. Be3 {[%emt 0:01:10]} b5 {[%emt 0:00:15]} 9. Nd5 {[%emt 0:00:04]} Rb8 {[%emt 0:00:06]} 10. c4 {[%emt 0:00:34]} b4 {[%emt 0:00:07]} 11. Nc2 {[%emt 0:00:03]} Nf6 {[%emt 0:00:06]} 12. Qd3 {[%emt 0:00:13]} O-O {[%emt 0:03:14]} 13. Be2 {[%emt 0:00:12]} Nxd5 {[%emt 0:01:40]} 14. cxd5 {[%emt 0:00:06]} Na5 {[%emt 0:00:14]} 15. a3 {[%emt 0:00:14]} bxa3 {[%emt 0:14:15]} 16. b4 {[%emt 0:00:09]} Nb7 {[%emt 0:00:26]} 17. Rxa3 {[%emt 0:04:24]} f5 {[%emt 0:05:56]} 18. Rxa6 {[%emt 0:05:43]} fxe4 {[%emt 0:00:58]} 19. Qd1 {[%emt 0:06:38]} Qe8 {[%emt 0:06:54]} 20. O-O {[%emt 0:03:18]} Nd8 {[%emt 0:03:25]} 21. Ra7 {[%emt 0:00:48]} Rf7 {[%emt 0:10:41]} 22. b5 {[%emt 0:06:28]} Bg5 {[%emt 0:03:20]} 23. Qa1 {[%emt 0:04:33]} Bxe3 {[%emt 0:03:06]} 24. Nxe3 {[%emt 0:01:21]} Nb7 {[%emt 0:08:47]} 25. Nc4 {[%emt 0:08:55]} Qd8 {[%emt 0:05:33]} 26. Qa3 {[%emt 0:04:25]} Rc7 {[%emt 0:02:52]} 27. Ra6 {[%emt 0:06:14]} Bg4 {[%emt 0:02:13]} 28. Qe3 {[%emt 0:13:55]} Bxe2 {[%emt 0:03:59]} 29. Qxe2 {[%emt 0:00:05]} Rc5 {[%emt 0:00:10]} 30. Ne3 {[%emt 0:00:32]} Na5 {[%emt 0:08:15]} 31. Rb1 {[%emt 0:04:34]} Qc7 {[%emt 0:01:05]} 32. h4 {[%emt 0:01:39]} Rc1+ {[%emt 0:01:49]} 33. Rxc1 {[%emt 0:00:09]} Qxc1+ {[%emt 0:00:07]} 34. Kh2 {[%emt 0:00:04]} Nb3 {[%emt 0:00:30]} 35. Qg4 {[%emt 0:03:39]} Qc7 {[%emt 0:06:48]} 36. b6 {[%emt 0:04:35]} Rxb6 {[%emt 0:02:40]} 37. Rxb6 {[%emt 0:00:20]} Qxb6 {[%emt 0:00:06]} 38. Qc8+ {[%emt 0:00:02]} Kf7 {[%emt 0:00:10]} 39. Qd7+ {[%emt 0:00:03]} Kf8 {[%emt 0:00:42]} 40. Nf5 {[%emt 0:00:06]} 1-0

[Event "FRA-chT Top 12 2019"]
[Site "Brest"]
[Date "2019.05.21"]
[Round "4.3"]
[White "Sulava, Nenad"]
[Black "Santos Ruiz, Miguel"]
[Result "1/2-1/2"]
[ECO "A06"]
[WhiteElo "2422"]
[BlackElo "2549"]
[Annotator "RC"]
[PlyCount "33"]
[EventDate "2019.05.18"]
[EventType "team-tourn"]
[EventCountry "FRA"]
[SourceTitle "playchess.com"]
[Source "ChessBase"]
[SourceQuality "1"]
[TimeControl "40/5400+30:1800+30"]

1. Nf3 d5 {[%emt 0:02:28]} 2. e3 {[%emt 0:00:00]} Nf6 {[%emt 0:00:37]} 3. c4 {[%emt 0:00:00]} e6 {[%emt 0:00:04]} 4. b3 {[%emt 0:00:16]} b6 {[%emt 0:00:16]} 5. Bb2 {[%emt 0:00:06]} Bb7 {[%emt 0:00:05]} 6. Nc3 {[%emt 0:00:21]} Nbd7 {[%emt 0:03:26]} 7. Qc2 {[%emt 0:07:45]} a6 {[%emt 0:09:16]} 8. cxd5 {[%emt 0:15:41]} exd5 {[%emt 0:00:21]} 9. d4 {[%emt 0:12:15]} Bd6 {[%emt 0:01:41]} 10. g3 {[%emt 0:00:16]} O-O {[%emt 0:11:07]} 11. Bg2 {[%emt 0:02:56]} Re8 {[%emt 0:00:15]} 12. O-O {[%emt 0:03:38]} Qe7 {[%emt 0:02:04]} 13. Rac1 {[%emt 0:16:23]} Ne4 {[%emt 0:03:52]} 14. Nxe4 {[%emt 0:02:57]} dxe4 {[%emt 0:02:57]} 15. Ne5 {[%emt 0:00:51]} Nf6 {[%emt 0:09:03]} 16. Nc4 {[%emt 0:03:41]} Nd5 {[%emt 0:00:23]} 17. Nxd6 {[%emt 0:11:34]} 1/2-1/2

[Event "FRA-chT Top 12 2019"]
[Site "Brest"]
[Date "2019.05.21"]
[Round "4.8"]
[White "Verot, Melanie"]
[Black "Haussernot, Cecile"]
[Result "0-1"]
[ECO "D02"]
[WhiteElo "2069"]
[BlackElo "2097"]
[Annotator "NA RC"]
[PlyCount "114"]
[EventDate "2019.05.18"]
[EventType "team-tourn"]
[EventCountry "FRA"]
[SourceTitle "playchess.com"]
[Source "ChessBase"]
[SourceQuality "1"]
[TimeControl "40/5400+30:1800+30"]

1. d4 {[%emt 0:00:00]} d5 {[%emt 0:00:00]} 2. Nf3 {[%emt 0:00:00]} Nf6 {[%emt 0:00:00]} 3. Bf4 {[%emt 0:00:30]} c5 {[%emt 0:02:44]} 4. c3 {[%emt 0:01:00]} Qb6 {[%emt 0:00:49]} 5. Qc2 {[%emt 0:01:55]} Nc6 {[%emt 0:06:01]} 6. e3 {[%emt 0:01:41]} Bf5 {[%emt 0:12:11] D02: 1 d4 d5 2 Nf3 sidelines, including 2...Nf6 3 g3 and 2...Nf6 3 Bf4} (6... g6 7. Nbd2 Bg7 8. h3 O-O 9. Be2 Nd7 10. O-O e5 11. dxe5 Ndxe5 12. Nxe5 Nxe5 13. e4 dxe4 14. Nxe4 {½-½ (23) Laznicka,V (2668)-Nisipeanu,L (2674) Germany 2019}) 7. dxc5 {[%emt 0:01:12]} Bxc2 {[%emt 0:02:45]} 8. cxb6 {[%emt 0:00:13]} Bxb1 {[%emt 0:01:33]} 9. Rxb1 {[%emt 0:01:13]} axb6 {[%emt 0:00:07]} 10. Bb5 {[%emt 0:08:47]} Nd7 {[%emt 0:00:27]} 11. O-O {[%emt 0:09:28]} e6 {[%emt 0:04:00]} 12. Rfd1 $146 {[%emt 0:05:19]} ({Predecessor:} 12. a3 Be7 13. Nd4 Ncb8 14. Bxb8 Rxb8 15. Nf3 Bf6 16. Rfd1 Rd8 17. c4 Ke7 18. cxd5 exd5 19. Rxd5 Nc5 20. Rbd1 Bxb2 21. Rxd8 {½-½ (21) Hestehauge,K (1918)-Jensen,S (2008) Copenhagen 2017}) 12... Rxa2 {[%emt 0:12:38]} 13. c4 {[%emt 0:14:20]} (13. e4 $16 Nf6 14. exd5 Nxd5 15. Bc4) 13... dxc4 {[%emt 0:03:10]} 14. Bxc4 {[%emt 0:16:44]} Ra5 {[%emt 0:08:43]} 15. Ra1 {[%emt 0:08:48]} Bb4 {[%emt 0:01:00]} 16. Rxa5 {[%emt 0:02:56]} bxa5 {[%emt 0:00:27]} 17. Bb5 {[%emt 0:00:22]} Ke7 {[%emt 0:00:40]} 18. h4 {[%emt 0:01:12]} Nb6 {[%emt 0:03:30]} 19. e4 {[%emt 0:02:10]} Rc8 {[%emt 0:02:30]} 20. Be3 {[%emt 0:01:13]} Nd7 {[%emt 0:02:13]} 21. Ne1 {[%emt 0:02:41]} Nc5 {[%emt 0:05:00]} 22. f3 {[%emt 0:02:20]} Nb3 {[%emt 0:06:48]} 23. Kf1 {[%emt 0:06:06]} Ne5 {[%emt 0:02:49]} 24. Ba4 {[%emt 0:02:51]} Nc5 {[%emt 0:01:19]} 25. Bb5 {[%emt 0:00:33]} Nb3 {[%emt 0:05:23]} 26. Ba4 {[%emt 0:00:22]} Nc4 {[%emt 0:03:17]} 27. Rd7+ {[%emt 0:01:24]} Kf8 {[%emt 0:00:10]} 28. Bxb3 {[%emt 0:00:34]} Nxe3+ {[%emt 0:00:05]} 29. Kf2 {[%emt 0:00:34]} Bxe1+ {[%emt 0:01:41]} 30. Kxe3 {[%emt 0:00:27]} b5 {[%emt 0:00:34]} 31. Rb7 {[%emt 0:02:27]} Rc5 {[%emt 0:00:52]} 32. Rb8+ {[%emt 0:00:26]} Ke7 {[%emt 0:00:10]} 33. Rb7+ {[%emt 0:00:05]} Kf6 {[%emt 0:00:26]} 34. Bd1 {[%emt 0:02:37]} Bxh4 {[%emt 0:00:23]} 35. Be2 {[%emt 0:00:14]} b4 {[%emt 0:00:09]} 36. f4 {[%emt 0:01:18]} g5 {[%emt 0:02:40]} 37. e5+ {[%emt 0:02:48]} Kg6 {[%emt 0:00:16]} 38. Bb5 {[%emt 0:01:19]} Bg3 {[%emt 0:01:49]} 39. fxg5 {[%emt 0:00:47]} Rxe5+ {[%emt 0:02:16]} 40. Kf3 {[%emt 0:00:25]} Bh4 {[%emt 0:03:21]} 41. g4 {[%emt 0:09:19]} Bxg5 {[%emt 0:01:28]} 42. Be8 {[%emt 0:00:30]} Re3+ {[%emt 0:00:22]} 43. Kf2 {[%emt 0:00:29]} Rb3 {[%emt 0:00:35]} 44. Rxf7 {[%emt 0:01:33]} Rxb2+ {[%emt 0:00:13]} 45. Kf3 {[%emt 0:00:53]} Kh6 {[%emt 0:02:26]} 46. Ra7 {[%emt 0:00:19]} Rb3+ {[%emt 0:01:48]} 47. Ke2 {[%emt 0:04:01]} Re3+ {[%emt 0:01:50]} 48. Kd1 {[%emt 0:00:40]} b3 {[%emt 0:06:07]} 49. Rxa5 {[%emt 0:06:09]} Bf6 {[%emt 0:02:00]} 50. Ba4 {[%emt 0:01:29]} b2 {[%emt 0:01:31]} 51. Rb5 {[%emt 0:03:16]} Bc3 $19 {[%emt 0:01:15]} 52. g5+ {[%emt 0:03:32]} Kg7 {[%emt 0:00:42]} 53. Rb7+ {[%emt 0:00:27]} Kf8 {[%emt 0:00:45]} 54. Rb8+ {[%emt 0:03:12]} Ke7 {[%emt 0:00:17]} 55. Rb7+ {[%emt 0:00:17]} Kd6 {[%emt 0:00:10]} 56. Rd7+ {[%emt 0:00:16]} Ke5 {[%emt 0:00:36]} 57. Kc2 {[%emt 0:01:13]} Re1 {[%emt 0:00:33]} 0-1

[Event "FRA-chT Top 12 2019"]
[Site "Brest"]
[Date "2019.05.22"]
[Round "5.1"]
[White "Amin, Bassem"]
[Black "Nihal Sarin"]
[Result "1-0"]
[ECO "A05"]
[WhiteElo "2704"]
[BlackElo "2598"]
[Annotator "RC"]
[PlyCount "59"]
[EventDate "2019.05.18"]
[EventType "team-tourn"]
[EventCountry "FRA"]
[SourceTitle "playchess.com"]
[Source "ChessBase"]
[SourceQuality "1"]
[TimeControl "40/5400+30:1800+30"]

1. Nf3 {[%emt 0:01:09]} Nf6 {[%emt 0:00:46]} 2. g3 {[%emt 0:00:08]} b5 {[%emt 0:00:09]} 3. Bg2 {[%emt 0:00:59]} Bb7 {[%emt 0:00:15]} 4. O-O {[%emt 0:00:17]} e6 {[%emt 0:01:12]} 5. d3 {[%emt 0:00:21]} c5 {[%emt 0:00:51]} 6. e4 {[%emt 0:01:49]} d6 {[%emt 0:00:18]} 7. a4 {[%emt 0:01:00]} b4 {[%emt 0:00:44]} 8. a5 {[%emt 0:04:07]} Be7 {[%emt 0:23:02]} 9. Nbd2 {[%emt 0:07:44]} O-O {[%emt 0:08:34]} 10. Nc4 {[%emt 0:01:32]} Nbd7 {[%emt 0:09:23]} 11. Bf4 {[%emt 0:12:06]} d5 {[%emt 0:10:03]} 12. a6 {[%emt 0:04:26]} Bc6 {[%emt 0:00:27]} 13. Na5 {[%emt 0:00:47]} Bb5 {[%emt 0:08:11]} 14. e5 {[%emt 0:01:19]} Ne8 {[%emt 0:02:11]} 15. c4 {[%emt 0:01:03]} bxc3 {[%emt 0:00:09]} 16. bxc3 {[%emt 0:00:09]} Rc8 {[%emt 0:08:21]} 17. c4 {[%emt 0:13:50]} Bxa6 {[%emt 0:00:54]} 18. cxd5 {[%emt 0:01:08]} exd5 {[%emt 0:00:05]} 19. Bh3 {[%emt 0:00:34]} Nb6 {[%emt 0:12:04]} 20. Bxc8 {[%emt 0:02:15]} Qxc8 {[%emt 0:03:43]} 21. Nc6 {[%emt 0:00:13]} Qxc6 {[%emt 0:00:05]} 22. Rxa6 {[%emt 0:00:07]} Nc7 {[%emt 0:01:20]} 23. Rxa7 {[%emt 0:00:16]} Re8 {[%emt 0:00:01]} 24. Qb3 {[%emt 0:08:06]} Nc8 {[%emt 0:01:38]} 25. Ra5 {[%emt 0:14:16]} d4 {[%emt 0:02:24]} 26. e6 {[%emt 0:03:28]} Qxe6 {[%emt 0:02:51]} 27. Qb7 {[%emt 0:01:16]} Nd5 {[%emt 0:00:27]} 28. Re1 {[%emt 0:00:53]} Qb6 {[%emt 0:00:33]} 29. Qxb6 {[%emt 0:00:54]} Ncxb6 {[%emt 0:00:11]} 30. Bd6 {[%emt 0:01:45]} 1-0

[Event "FRA-chT Top 12 2019"]
[Site "Brest"]
[Date "2019.05.22"]
[Round "5.5"]
[White "Vitoux, Colomban"]
[Black "Naiditsch, Arkadij"]
[Result "0-1"]
[ECO "B30"]
[WhiteElo "2384"]
[BlackElo "2682"]
[Annotator "RC"]
[PlyCount "118"]
[EventDate "2019.05.18"]
[EventType "team-tourn"]
[EventCountry "FRA"]
[SourceTitle "playchess.com"]
[Source "ChessBase"]
[SourceQuality "1"]
[TimeControl "40/5400+30:1800+30"]

1. e4 {[%emt 0:00:00]} c5 {[%emt 0:00:46]} 2. Nf3 {[%emt 0:00:00]} Nc6 {[%emt 0:00:09]} 3. Nc3 {[%emt 0:00:36]} e6 {[%emt 0:01:43]} 4. g3 {[%emt 0:04:17]} a6 {[%emt 0:03:24]} 5. Bg2 {[%emt 0:00:28]} b5 {[%emt 0:00:07]} 6. O-O {[%emt 0:03:47]} Bb7 {[%emt 0:00:19]} 7. Re1 {[%emt 0:03:03]} Rc8 {[%emt 0:03:40]} 8. a4 {[%emt 0:11:49]} b4 {[%emt 0:02:11]} 9. Nd5 {[%emt 0:03:33]} d6 {[%emt 0:01:24]} 10. Ne3 {[%emt 0:01:24]} Be7 {[%emt 0:14:17]} 11. Nc4 {[%emt 0:10:30]} h5 {[%emt 0:01:32]} 12. c3 {[%emt 0:02:23]} Nf6 {[%emt 0:02:53]} 13. d3 {[%emt 0:05:42]} Ng4 {[%emt 0:03:37]} 14. d4 {[%emt 0:03:58]} bxc3 {[%emt 0:01:18]} 15. bxc3 {[%emt 0:09:40]} cxd4 {[%emt 0:04:25]} 16. Rb1 {[%emt 0:04:20]} Ba8 {[%emt 0:02:06]} 17. cxd4 {[%emt 0:01:04]} Nb4 {[%emt 0:02:54]} 18. Na3 {[%emt 0:04:33]} Na2 {[%emt 0:08:48]} 19. Qd3 {[%emt 0:09:24]} Nc3 {[%emt 0:17:02]} 20. Ra1 {[%emt 0:00:25]} d5 {[%emt 0:00:52]} 21. exd5 {[%emt 0:04:11]} Nxd5 {[%emt 0:00:34]} 22. Qxa6 {[%emt 0:01:20]} O-O {[%emt 0:00:25]} 23. Bd2 {[%emt 0:01:48]} Nb4 {[%emt 0:03:26]} 24. Qb5 {[%emt 0:02:10]} Bxf3 {[%emt 0:03:40]} 25. Bxf3 {[%emt 0:03:01]} Qxd4 {[%emt 0:00:10]} 26. Bxg4 {[%emt 0:04:52]} Qxd2 {[%emt 0:03:08]} 27. Qe2 {[%emt 0:00:23]} Qg5 {[%emt 0:07:19]} 28. Bxe6 {[%emt 0:01:47]} Rc3 {[%emt 0:00:02]} 29. Bh3 {[%emt 0:02:11]} Bc5 {[%emt 0:00:02]} 30. Qe5 {[%emt 0:00:46]} Qxe5 {[%emt 0:05:23]} 31. Rxe5 {[%emt 0:00:02]} Nd3 {[%emt 0:00:10]} 32. Nb5 {[%emt 0:01:12]} Bxf2+ {[%emt 0:04:14]} 33. Kf1 {[%emt 0:00:05]} Rb3 {[%emt 0:00:26]} 34. Re2 {[%emt 0:00:25]} Bc5 {[%emt 0:00:28]} 35. Bg2 {[%emt 0:01:25]} Nb4 36. Nc7 Rb8 {[%emt 0:03:52]} 37. Nd5 {[%emt 0:01:05]} Nd3 {[%emt 0:00:19]} 38. Be4 {[%emt 0:00:35]} Ne5 {[%emt 0:00:46]} 39. Bc2 {[%emt 0:00:32]} Rb2 {[%emt 0:00:04]} 40. Rxe5 {[%emt 0:00:38]} Rxc2 {[%emt 0:00:22]} 41. Re2 {[%emt 0:10:53]} Rxe2 {[%emt 0:00:35]} 42. Kxe2 {[%emt 0:00:02]} Rb2+ {[%emt 0:00:00]} 43. Kd3 {[%emt 0:06:01]} Rxh2 44. a5 {[%emt 0:02:26]} Rg2 {[%emt 0:12:55]} 45. Kc4 {[%emt 0:01:04]} Bg1 {[%emt 0:03:31]} 46. Ra3 {[%emt 0:01:57]} Rd2 {[%emt 0:01:44]} 47. Nb4 {[%emt 0:03:32]} Kh7 {[%emt 0:05:04]} 48. a6 Rd4+ {[%emt 0:01:33]} 49. Kb5 {[%emt 0:01:51]} Rg4 50. Nd5 {[%emt 0:02:21]} Rd4 {[%emt 0:04:26]} 51. Kc6 {[%emt 0:01:55]} Rc4+ {[%emt 0:00:09]} 52. Kb7 {[%emt 0:03:07]} Kh6 {[%emt 0:00:39]} 53. Ra1 {[%emt 0:00:54]} Bd4 {[%emt 0:00:33]} 54. Rd1 {[%emt 0:00:26]} Bc5 {[%emt 0:02:08]} 55. Nb6 {[%emt 0:00:58]} Rb4 {[%emt 0:00:54]} 56. Rd6+ {[%emt 0:00:24]} Bxd6 {[%emt 0:00:22]} 57. a7 {[%emt 0:00:13]} Bxg3 {[%emt 0:00:55]} 58. a8=Q Bf2 {[%emt 0:00:07]} 59. Qa2 {[%emt 0:01:20]} Rxb6+ {[%emt 0:00:10]} 0-1

[Event "FRA-chT Top 12 2019"]
[Site "Brest"]
[Date "2019.05.22"]
[Round "5.6"]
[White "Rambaldi, Francesco"]
[Black "Ludwig, Remi"]
[Result "1-0"]
[ECO "A05"]
[WhiteElo "2558"]
[BlackElo "2312"]
[Annotator "RC"]
[PlyCount "101"]
[EventDate "2019.05.18"]
[EventType "team-tourn"]
[EventCountry "FRA"]
[SourceTitle "playchess.com"]
[Source "ChessBase"]
[SourceQuality "1"]
[TimeControl "40/5400+30:1800+30"]

1. Nf3 {[%emt 0:00:00]} Nf6 {[%emt 0:00:00]} 2. g3 {[%emt 0:00:00]} g6 {[%emt 0:00:01]} 3. b3 {[%emt 0:00:05]} d5 {[%emt 0:00:40]} 4. c4 {[%emt 0:00:40]} d4 {[%emt 0:00:26]} 5. b4 {[%emt 0:10:09]} Bg7 {[%emt 0:11:26]} 6. d3 {[%emt 0:00:37]} O-O {[%emt 0:01:09]} 7. Bg2 {[%emt 0:00:07]} c5 {[%emt 0:01:18]} 8. bxc5 {[%emt 0:00:21]} Nfd7 {[%emt 0:00:28]} 9. O-O {[%emt 0:01:57]} Nxc5 {[%emt 0:02:16]} 10. Nbd2 {[%emt 0:01:19]} Qc7 {[%emt 0:11:55]} 11. Nb3 {[%emt 0:03:06]} e5 {[%emt 0:05:17]} 12. Nxc5 {[%emt 0:01:18]} Qxc5 {[%emt 0:00:05]} 13. Ng5 {[%emt 0:06:23]} Qe7 {[%emt 0:03:32]} 14. Qb3 {[%emt 0:03:46]} Na6 {[%emt 0:23:57]} 15. Bd5 {[%emt 0:14:44]} Nc5 {[%emt 0:08:48]} 16. Qb4 {[%emt 0:02:24]} a5 {[%emt 0:00:55]} 17. Qa3 {[%emt 0:00:18]} Bf5 {[%emt 0:00:37]} 18. Ne4 {[%emt 0:03:01]} Bxe4 {[%emt 0:00:57]} 19. Bxe4 {[%emt 0:00:14]} Rfe8 {[%emt 0:00:27]} 20. Bd5 {[%emt 0:00:20]} e4 {[%emt 0:05:56]} 21. Bg5 {[%emt 0:04:50]} Qxg5 {[%emt 0:02:56]} 22. Qxc5 {[%emt 0:00:06]} Qf5 {[%emt 0:02:21]} 23. Rab1 {[%emt 0:06:15]} exd3 {[%emt 0:05:41]} 24. exd3 {[%emt 0:00:17]} Rab8 {[%emt 0:02:18]} 25. Qc7 {[%emt 0:14:26]} b5 {[%emt 0:02:09]} 26. Qxa5 {[%emt 0:04:23]} bxc4 {[%emt 0:00:35]} 27. Rxb8 {[%emt 0:00:14]} Rxb8 {[%emt 0:00:06]} 28. Qa7 {[%emt 0:00:11]} Rb2 {[%emt 0:02:36]} 29. Bxc4 {[%emt 0:00:10]} h5 {[%emt 0:01:10]} 30. Qa8+ {[%emt 0:01:45]} Bf8 {[%emt 0:01:54]} 31. h4 {[%emt 0:01:16]} Qf6 {[%emt 0:00:54]} 32. a4 {[%emt 0:01:32]} Kg7 {[%emt 0:01:21]} 33. a5 {[%emt 0:00:56]} Bc5 {[%emt 0:00:52]} 34. Qd5 {[%emt 0:02:22]} Ba7 {[%emt 0:00:43]} 35. a6 {[%emt 0:00:10]} Re2 {[%emt 0:00:19]} 36. Kg2 {[%emt 0:01:18]} Re5 {[%emt 0:00:26]} 37. Qb7 {[%emt 0:01:14]} Re7 {[%emt 0:00:06]} 38. Qf3 {[%emt 0:00:10]} Qxf3+ {[%emt 0:00:35]} 39. Kxf3 {[%emt 0:00:06]} Kf6 {[%emt 0:00:35]} 40. Rb1 {[%emt 0:01:19]} Kg7 {[%emt 0:01:08]} 41. Rb5 {[%emt 0:31:24]} f5 {[%emt 0:14:28]} 42. Bd5 {[%emt 0:00:00]} Kf6 {[%emt 0:02:56]} 43. Rb7 {[%emt 0:00:00]} Rxb7 {[%emt 0:01:27]} 44. Bxb7 {[%emt 0:00:00]} g5 {[%emt 0:02:10]} 45. Kg2 {[%emt 0:00:00]} g4 {[%emt 0:05:16]} 46. f4 {[%emt 0:00:00]} gxf3+ {[%emt 0:03:31]} 47. Bxf3 {[%emt 0:00:00]} Kg6 {[%emt 0:01:06]} 48. Kf1 {[%emt 0:00:00]} Bb8 {[%emt 0:01:01]} 49. Ke2 {[%emt 0:00:00]} Kh6 {[%emt 0:01:16]} 50. Kd1 {[%emt 0:00:00]} Kg6 {[%emt 0:00:08]} 51. Kc2 {[%emt 0:00:00]} 1-0

[Event "FRA-chT Top 12 2019"]
[Site "Brest"]
[Date "2019.05.22"]
[Round "5.7"]
[White "Brochet, Philippe"]
[Black "Jeanne, Mickael"]
[Result "1/2-1/2"]
[ECO "C01"]
[WhiteElo "2400"]
[BlackElo "2150"]
[Annotator "RC"]
[PlyCount "86"]
[EventDate "2019.05.18"]
[EventType "team-tourn"]
[EventCountry "FRA"]
[SourceTitle "playchess.com"]
[Source "ChessBase"]
[SourceQuality "1"]
[TimeControl "40/5400+30:1800+30"]

1. e4 {[%emt 0:00:31]} e6 {[%emt 0:00:00]} 2. d4 {[%emt 0:00:04]} d5 {[%emt 0:00:00]} 3. exd5 {[%emt 0:00:12]} exd5 {[%emt 0:00:02]} 4. Nf3 {[%emt 0:00:03]} Bd6 {[%emt 0:00:25]} 5. c4 {[%emt 0:00:12]} Nf6 {[%emt 0:00:34]} 6. c5 {[%emt 0:00:39]} Be7 {[%emt 0:00:06]} 7. Qa4+ {[%emt 0:00:10]} c6 {[%emt 0:14:16]} 8. Bd3 {[%emt 0:08:58]} O-O {[%emt 0:05:05]} 9. Nc3 {[%emt 0:00:18]} Re8 {[%emt 0:03:28]} 10. O-O {[%emt 0:00:14]} Nbd7 {[%emt 0:02:24]} 11. Re1 {[%emt 0:03:20]} Nf8 {[%emt 0:05:37]} 12. h3 {[%emt 0:03:36]} Ng6 {[%emt 0:02:15]} 13. Ne5 {[%emt 0:09:04]} Nxe5 {[%emt 0:09:32]} 14. Rxe5 {[%emt 0:07:11]} Nd7 {[%emt 0:03:54]} 15. Re2 {[%emt 0:01:56]} Bf6 {[%emt 0:03:22]} 16. Rxe8+ {[%emt 0:02:53]} Qxe8 {[%emt 0:00:10]} 17. Bf4 {[%emt 0:05:27]} Qd8 {[%emt 0:14:50]} 18. Re1 {[%emt 0:05:35]} Nf8 {[%emt 0:03:43]} 19. Be5 {[%emt 0:03:36]} Bxe5 {[%emt 0:03:39]} 20. Rxe5 {[%emt 0:06:16]} Be6 {[%emt 0:01:30]} 21. b4 {[%emt 0:11:11]} b5 {[%emt 0:03:36]} 22. cxb6 {[%emt 0:09:40]} axb6 {[%emt 0:01:38]} 23. Qc2 {[%emt 0:01:11]} b5 {[%emt 0:01:57]} 24. Re1 {[%emt 0:05:41]} Qe7 {[%emt 0:01:21]} 25. Qb2 {[%emt 0:01:46]} Qa7 {[%emt 0:00:27]} 26. Rd1 {[%emt 0:01:18]} Qa3 {[%emt 0:03:11]} 27. Qxa3 {[%emt 0:02:24]} Rxa3 {[%emt 0:00:02]} 28. Rc1 {[%emt 0:00:06]} Bd7 {[%emt 0:00:40]} 29. Kf1 {[%emt 0:00:26]} g6 {[%emt 0:03:58]} 30. Ke2 {[%emt 0:01:49]} Ne6 {[%emt 0:00:53]} 31. Ke3 {[%emt 0:00:08]} f5 {[%emt 0:03:04]} 32. f4 {[%emt 0:01:17]} Kf7 {[%emt 0:00:34]} 33. Rc2 {[%emt 0:01:26]} h6 {[%emt 0:03:28]} 34. g3 {[%emt 0:01:31]} Kf6 {[%emt 0:00:29]} 35. h4 {[%emt 0:01:36]} Ra8 {[%emt 0:03:47]} 36. Rf2 {[%emt 0:01:48]} h5 {[%emt 0:01:47]} 37. Rc2 {[%emt 0:01:04]} Ra3 {[%emt 0:01:12]} 38. Ne2 {[%emt 0:00:59]} Ra4 {[%emt 0:00:45]} 39. Rb2 {[%emt 0:00:09]} Ke7 {[%emt 0:01:06]} 40. Bc2 {[%emt 0:01:57]} Ra3+ {[%emt 0:00:41]} 41. Bb3 {[%emt 0:30:24]} Kd6 {[%emt 0:30:27]} 42. Nc3 {[%emt 0:00:00]} Nc7 {[%emt 0:00:00]} 43. Re2 {[%emt 0:00:00]} Ra8 {[%emt 0:00:00] Ke4 Ke5+} 1/2-1/2